bitfinex/quotes_BTCUSD_20240915
["timestamp","ask_amount","ask_price","bid_price","bid_amount"]
[1726421061647,0.001646,59999.0,59988.0,1.73498108]
[1726421062319,0.001646,59999.0,59988.0,1.83484237]
[1726421063443,0.001646,59999.0,59988.0,1.83454437]
[1726421063881,0.001646,59999.0,59988.0,1.84854437]
[1726421064099,0.001646,59999.0,59988.0,1.83454437]
[1726421064317,0.001646,59999.0,59988.0,1.84754437]
[1726421065483,0.001646,59999.0,59988.0,1.76168657]
[1726421065701,0.001646,59999.0,59988.0,1.77162262]
[1726421065914,0.001646,59999.0,59988.0,1.79462262]
[1726421066139,0.001646,59999.0,59988.0,2.15802262]
[1726421066357,0.001646,59999.0,59988.0,2.19677588]
[1726421066572,0.001646,59999.0,59988.0,2.29677588]
[1726421066979,0.001646,59999.0,59988.0,2.44856259]
[1726421067223,0.001646,59999.0,59988.0,2.29677588]
[1726421067889,0.001646,59999.0,59988.0,2.30015123]
[1726421069942,0.001646,59999.0,59997.0,1.523075]
[1726421070167,0.001646,59999.0,59997.0,2.21886067]
[1726421070357,0.001646,59999.0,59997.0,2.11172351]
[1726421070641,0.001646,59999.0,59997.0,2.13310299]
[1726421071309,0.001646,59999.0,59997.0,2.11172351]
[1726421072219,0.001646,59999.0,59997.0,2.12572351]
[1726421072411,0.001646,59999.0,59997.0,1.82037839]
[1726421072632,0.001646,59999.0,59997.0,1.88769745]
[1726421072856,0.001646,59999.0,59997.0,1.51830422]
[1726421073071,0.001646,59999.0,59997.0,1.228135]
[1726421073276,0.001646,59999.0,59997.0,1.214135]
[1726421073493,0.001646,59999.0,59997.0,0.880785]
[1726421073696,0.001646,59999.0,59997.0,0.861375]
[1726421077571,0.0055518,59998.0,59997.0,0.861375]
[1726421082127,0.0055518,59998.0,59997.0,0.894815]
[1726421082354,0.0055518,59998.0,59997.0,1.44461839]
[1726421082572,0.0055518,59998.0,59997.0,1.47805839]
[1726421086304,0.1937,60011.0,60009.0,0.499924]
[1726421088797,0.1937,60011.0,60009.0,0.506924]
[1726421089323,0.1937,60011.0,60009.0,0.499924]
[1726421089582,0.1937,60011.0,60009.0,0.513924]
[1726421089849,0.1937,60011.0,60009.0,0.840207]
[1726421090113,0.1937,60011.0,60009.0,0.847207]
[1726421090385,0.1937,60011.0,60008.0,0.166643]
[1726421090719,0.1937,60011.0,60006.0,0.333295]
[1726421090871,0.1937,60011.0,60008.0,0.166643]
[1726421091095,0.1937,60011.0,60009.0,0.166641]
[1726421092399,0.002646,60010.0,60009.0,0.166641]
[1726421092611,0.002646,60010.0,60009.0,0.173641]
[1726421092612,0.001646,60010.0,60009.0,0.173641]
[1726421093046,0.002646,60010.0,60009.0,0.513924]
[1726421095076,0.002646,60010.0,60009.0,0.014]
[1726421095306,0.002646,60010.0,60007.0,0.166645]
[1726421096431,0.001646,60010.0,60009.0,0.74981739]
[1726421096644,0.002646,60010.0,60009.0,1.08310039]
[1726421097338,0.002646,60010.0,60009.0,1.13291554]
[1726421097767,0.003646,60010.0,60009.0,1.13291554]
[1726421098191,0.002646,60010.0,60009.0,1.13291554]
[1726421098417,0.003646,60010.0,60009.0,1.08910039]
[1726421098623,0.002646,60010.0,60009.0,1.08910039]
[1726421098755,0.003646,60010.0,60009.0,1.09510039]
[1726421100346,0.003646,60010.0,60009.0,1.72068177]
[1726421100563,0.003646,60010.0,60009.0,1.82051446]
[1726421101255,0.003646,60010.0,60009.0,1.72040975]
[1726421101459,0.003646,60010.0,60009.0,1.84520162]
[1726421101680,0.003646,60010.0,60009.0,1.72040975]
[1726421101886,0.003646,60010.0,60009.0,1.82025997]
[1726421102115,0.003646,60010.0,60009.0,1.84520162]
[1726421102755,0.003646,60010.0,60009.0,1.72040975]
[1726421103879,0.003646,60010.0,60009.0,1.84525266]
[1726421104334,0.003646,60010.0,60009.0,1.84525432]
[1726421105452,0.003646,60010.0,60009.0,1.72040975]
[1726421107295,0.003646,60010.0,60009.0,2.08713275]
[1726421107667,0.003646,60010.0,60009.0,2.10869473]
[1726421107877,0.003646,60010.0,60009.0,2.51753164]
[1726421108098,0.002646,60010.0,60009.0,2.51153164]
[1726421108514,0.003646,60010.0,60009.0,2.51753164]
[1726421108845,0.002646,60010.0,60009.0,2.51153164]
[1726421109413,0.002646,60010.0,60009.0,2.5194797]
[1726421110121,0.002646,60010.0,60009.0,2.5254797]
[1726421110348,0.002646,60010.0,60009.0,2.5054797]
[1726421110572,0.001646,60010.0,60009.0,2.48391772]
[1726421110795,0.002646,60010.0,60009.0,2.51953913]
[1726421111474,0.002646,60010.0,60009.0,1.92721557]
[1726421111684,0.002646,60010.0,60009.0,1.67732218]
[1726421112115,0.003646,60010.0,60009.0,1.54152583]
[1726421112340,0.003646,60010.0,60009.0,1.17480283]
[1726421112999,0.003646,60010.0,60009.0,1.15318142]
[1726421113218,0.003646,60010.0,60009.0,1.17480283]
[1726421113455,0.003646,60010.0,60009.0,0.84436908]
[1726421113691,0.003646,60010.0,60009.0,0.9475868]
[1726421113912,0.003646,60010.0,60009.0,1.25590487]
[1726421114131,0.003646,60010.0,60009.0,0.92311502]
[1726421114350,0.002646,60010.0,60009.0,0.90993702]
[1726421114837,0.003646,60010.0,60009.0,0.91993702]
[1726421115061,0.002646,60010.0,60009.0,0.90593702]
[1726421115279,0.001646,60010.0,60009.0,0.89593702]
[1726421115495,0.001646,60010.0,60009.0,0.56265402]
[1726421115713,0.001646,60010.0,60009.0,0.46677858]
[1726421115924,0.001646,60010.0,60009.0,0.57165402]
[1726421116494,0.001646,60010.0,60009.0,0.40006496]
[1726421116596,0.001646,60010.0,60009.0,0.40406496]
[1726421116816,0.001646,60010.0,60009.0,0.56670596]
[1726421117027,0.001646,60010.0,60009.0,0.46683052]
[1726421117247,0.001646,60010.0,60009.0,0.56671487]
[1726421117696,0.001646,60010.0,60009.0,0.40007387]
[1726421117918,0.001646,60010.0,60009.0,0.39607387]
[1726421118142,0.001646,60010.0,60009.0,0.05076449]
[1726421118143,0.184846,60010.0,60009.0,0.05076449]
[1726421118395,0.184846,60010.0,60009.0,0.05776642]
[1726421118866,0.184846,60010.0,60009.0,0.004822]
[1726421119067,0.184846,60010.0,60009.0,0.007822]
[1726421119303,0.333283,60009.0,60005.0,0.09988435]
[1726421119531,0.32084319,60010.0,60001.0,0.166663]
[1726421119532,0.5034,60002.0,60001.0,0.166663]
[1726421119742,0.5034,60002.0,59997.0,0.000822]
[1726421119963,0.5034,60002.0,59998.0,0.166671]
[1726421120181,0.670061,60002.0,59997.0,0.167495]
[1726421120400,0.670063,60002.0,59997.0,0.167495]
[1726421120856,0.166667,60000.0,59997.0,0.000822]
[1726421121315,0.16667,59999.0,59997.0,0.000822]
[1726421121552,0.166667,60000.0,59997.0,0.000822]
[1726421121808,0.5034,60002.0,59989.0,0.334213]
[1726421121809,0.24989339,59998.0,59989.0,0.000822]
[1726421122047,0.333355,59996.0,59989.0,0.000822]
[1726421122299,0.5034,60002.0,59993.0,0.333372]
[1726421122300,0.5054,60002.0,59993.0,0.333372]
[1726421122537,0.002,60000.0,59996.0,0.166677]
[1726421122743,0.002,60000.0,59994.0,0.333365]
[1726421122744,0.168667,60000.0,59995.0,0.166679]
[1726421122958,0.166671,59999.0,59993.0,0.333372]
[1726421123169,0.166671,59999.0,59994.0,0.166682]
[1726421123600,0.836727,60002.0,59994.0,0.166682]
[1726421123841,0.16667,59999.0,59994.0,0.166682]
[1726421124301,0.004,59998.0,59994.0,0.166682]
[1726421124996,0.16667,59999.0,59994.0,0.166682]
[1726421125196,0.16667,59999.0,59994.0,0.168682]
[1726421125407,0.16667,59999.0,59994.0,0.170682]
[1726421125623,0.16667,59999.0,59994.0,0.166682]
[1726421125823,0.5034,60002.0,59997.0,0.166674]
[1726421126029,0.5034,60002.0,59993.0,0.334192]
[1726421126030,0.5034,60002.0,59994.0,0.006]
[1726421126255,0.166664,60001.0,59996.0,0.166676]
[1726421126467,0.670062,60002.0,59997.0,0.166674]
[1726421126923,0.5034,60002.0,59994.0,0.005]
[1726421127375,0.5034,60002.0,60001.0,0.166663]
[1726421128169,0.197246,60010.0,60009.0,0.166641]
[1726421128418,0.001646,60010.0,60009.0,0.499924]
[1726421128661,0.001646,60010.0,60009.0,0.833207]
[1726421128905,0.001646,60010.0,60009.0,0.499924]
[1726421129194,0.001646,60010.0,60009.0,0.833207]
[1726421129425,0.001646,60010.0,60009.0,0.499924]
[1726421129670,0.003646,60010.0,60009.0,0.499924]
[1726421129909,0.002646,60010.0,60009.0,0.499924]
[1726421130623,0.002646,60010.0,60009.0,0.833207]
[1726421130884,0.002646,60010.0,60009.0,0.499924]
[1726421131138,0.001646,60010.0,60009.0,0.499924]
[1726421131379,0.003646,60010.0,60009.0,0.514924]
[1726421131878,0.003646,60010.0,60009.0,0.848207]
[1726421132126,0.003646,60010.0,60009.0,0.514924]
[1726421133829,0.003646,60010.0,60009.0,0.015]
[1726421134113,0.170284,60010.0,60009.0,0.015]
[1726421134357,0.503561,60010.0,60009.0,0.015]
[1726421134624,0.170284,60010.0,60009.0,0.015]
[1726421135578,0.503561,60010.0,60009.0,0.015]
[1726421140019,0.003646,60010.0,60009.0,0.015]
[1726421140920,0.1,60009.0,59997.0,0.000823]
[1726421141154,1.53730911,59998.0,59997.0,0.000823]
[1726421141389,1.87065311,59998.0,59997.0,0.000823]
[1726421141606,1.54526243,59998.0,59997.0,0.000823]
[1726421142112,0.833415,59994.0,59993.0,0.000822]
[1726421142556,0.84134669,59994.0,59993.0,0.000822]
[1726421143005,0.00793169,59994.0,59993.0,0.000822]
[1726421143227,0.18261469,59994.0,59993.0,0.001822]
[1726421143438,0.13436224,59994.0,59993.0,0.001822]
[1726421143651,0.45972824,59994.0,59993.0,0.000822]
[1726421143862,0.45972824,59994.0,59993.0,0.001822]
[1726421143863,0.46772824,59994.0,59993.0,0.001822]
[1726421144557,0.008,59994.0,59993.0,0.001822]
[1726421144772,0.174683,59994.0,59993.0,0.001822]
[1726421144987,0.508049,59994.0,59993.0,0.001822]
[1726421145203,0.517049,59994.0,59993.0,0.001822]
[1726421145420,0.017,59994.0,59993.0,0.001822]
[1726421150489,0.185329,59994.0,59993.0,0.001822]
[1726421150713,0.518695,59994.0,59993.0,0.001822]
[1726421150962,1.04441011,59994.0,59993.0,0.001822]
[1726421151186,1.37777611,59994.0,59993.0,0.001822]
[1726421151405,1.56747611,59994.0,59993.0,0.001822]
[1726421151830,1.23411011,59994.0,59993.0,0.001822]
[1726421153158,1.041761,59994.0,59993.0,0.001822]
[1726421154539,1.56747611,59994.0,59993.0,0.001822]
[1726421154762,1.55947611,59994.0,59993.0,0.000822]
[1726421154977,1.56747611,59994.0,59993.0,0.001822]
[1726421155414,1.65047611,59994.0,59993.0,0.000822]
[1726421155636,1.166858,59990.0,59989.0,0.000822]
[1726421156073,0.83347,59990.0,59989.0,0.000822]
[1726421156981,0.84247,59990.0,59989.0,0.001822]
[1726421157190,0.83347,59990.0,59989.0,0.000822]
[1726421157666,0.83347,59990.0,59989.0,0.001822]
[1726421157667,0.84247,59990.0,59989.0,0.001822]
[1726421157904,0.84647,59990.0,59989.0,0.001822]
[1726421158386,0.84247,59990.0,59989.0,0.001822]
[1726421158629,0.85047,59990.0,59989.0,0.002822]
[1726421159104,0.84147,59990.0,59989.0,0.001822]
[1726421159361,0.85347,59990.0,59989.0,0.002822]
[1726421159612,0.85347,59990.0,59989.0,0.001822]
[1726421159848,0.86247,59990.0,59989.0,0.002822]
[1726421164091,0.029,59990.0,59989.0,0.002822]
[1726421164615,0.029,59990.0,59989.0,0.836307]
[1726421164900,0.029,59990.0,59989.0,1.226141]
[1726421165643,0.001646,59994.0,59993.0,0.83343]
[1726421167174,0.002646,59994.0,59993.0,0.83943]
[1726421168176,0.002646,59994.0,59993.0,0.84443]
[1726421170391,0.002646,59994.0,59993.0,1.177802]
[1726421171712,0.002646,59994.0,59993.0,0.511058]
[1726421172377,0.002646,59994.0,59993.0,0.177686]
[1726421172611,0.002646,59994.0,59993.0,0.011]
[1726421173543,0.169329,59994.0,59993.0,0.011]
[1726421174026,0.836061,59994.0,59993.0,0.011]
[1726421174459,1.169427,59994.0,59993.0,0.011]
[1726421174681,1.494027,59994.0,59993.0,0.006]
[1726421175379,1.160661,59994.0,59993.0,0.006]
[1726421176272,0.500082,59990.0,59989.0,0.000822]
[1726421177879,0.519082,59990.0,59989.0,0.002822]
[1726421178124,0.519082,59990.0,59989.0,0.001822]
[1726421178824,0.510082,59990.0,59989.0,0.000822]
[1726421179052,0.01,59990.0,59989.0,0.500913]
[1726421179273,0.01,59990.0,59989.0,0.834307]
[1726421179510,0.01,59990.0,59989.0,0.500913]
[1726421179732,0.019,59990.0,59989.0,0.501913]
[1726421179953,0.019,59990.0,59989.0,1.02765611]
[1726421180449,0.001646,59994.0,59993.0,0.166686]
[1726421180665,0.001646,59994.0,59993.0,0.158686]
[1726421181345,0.001646,59994.0,59993.0,0.82543]
[1726421181810,0.001646,59994.0,59993.0,0.492058]
[1726421182275,0.001646,59994.0,59993.0,0.494058]
[1726421182687,0.001646,59994.0,59993.0,0.160686]
[1726421183221,0.001646,59994.0,59993.0,0.161686]
[1726421183437,0.001646,59994.0,59993.0,0.495058]
[1726421183627,0.001646,59994.0,59993.0,0.161686]
[1726421184291,0.001646,59994.0,59993.0,0.159686]
[1726421184708,0.001646,59994.0,59993.0,0.162686]
[1726421185173,0.001646,59994.0,59993.0,0.158686]
[1726421185389,0.002646,59994.0,59993.0,0.165686]
[1726421186446,0.002646,59994.0,59993.0,0.166686]
[1726421186863,0.002646,59994.0,59993.0,0.165686]
[1726421187079,0.003646,59994.0,59993.0,0.170686]
[1726421188442,0.003646,59994.0,59993.0,0.504058]
[1726421191950,0.003646,59994.0,59993.0,0.83743]
[1726421196218,0.003646,59994.0,59993.0,1.170802]
[1726421196860,0.003646,59994.0,59993.0,1.2207557]
[1726421197655,0.003646,59994.0,59993.0,1.170802]
[1726421197855,0.003646,59994.0,59993.0,0.838253]
[1726421204641,0.003646,59994.0,59993.0,0.88819033]
[1726421205837,0.003646,59994.0,59993.0,0.838253]
[1726421209618,0.003646,59994.0,59993.0,0.88819033]
[1726421210567,0.003646,59994.0,59993.0,0.838253]
[1726421211315,0.003646,59994.0,59993.0,0.88824053]
[1726421211544,0.003646,59994.0,59993.0,1.17896279]
[1726421212323,0.001646,60010.0,60009.0,0.35903429]
[1726421212577,0.001646,60010.0,60009.0,0.69231729]
[1726421212835,0.001646,60010.0,60009.0,1.05904029]
[1726421213092,0.001646,60010.0,60009.0,1.10900167]
[1726421213601,0.001646,60010.0,60009.0,0.866647]
[1726421214705,0.001646,60010.0,60009.0,0.868647]
[1726421214947,0.001646,60010.0,60009.0,0.866647]
[1726421215163,0.001646,60010.0,60009.0,0.874647]
[1726421215378,0.001646,60010.0,60009.0,0.885647]
[1726421216035,0.001646,60010.0,60009.0,0.866647]
[1726421216279,0.001646,60010.0,60009.0,1.21893]
[1726421216495,0.001646,60010.0,60009.0,1.56432329]
[1726421216707,0.001646,60010.0,60009.0,1.94683702]
[1726421216929,0.001646,60010.0,60009.0,1.83293355]
[1726421217152,0.001646,60010.0,60009.0,2.16621655]
[1726421217615,0.001646,60010.0,60009.0,2.29086977]
[1726421218274,0.001646,60010.0,60009.0,2.26594159]
[1726421218705,0.001646,60010.0,60009.0,2.16621655]
[1726421219002,0.001646,60010.0,60009.0,2.16421655]
[1726421219182,0.001646,60018.0,60015.0,1.41520829]
[1726421220114,0.001646,60018.0,60015.0,1.41503156]
[1726421220641,0.001646,60018.0,60015.0,1.222815]
[1726421221577,0.001646,60018.0,60015.0,1.233815]
[1726421221820,0.001646,60018.0,60015.0,1.24374477]
[1726421222032,0.001646,60018.0,60015.0,1.23274477]
[1726421222252,0.001646,60018.0,60015.0,1.222815]
[1726421222918,0.001646,60018.0,60015.0,1.236815]
[1726421223391,0.001646,60018.0,60015.0,1.250815]
[1726421225629,0.001646,60018.0,60015.0,0.894565]
[1726421225880,0.001646,60018.0,60015.0,0.527875]
[1726421226606,0.001646,60018.0,60015.0,0.513875]
[1726421227047,0.001646,60018.0,60015.0,0.188625]
[1726421227472,0.001646,60018.0,60015.0,0.180625]
[1726421227947,0.001646,60018.0,60015.0,0.166625]
[1726421228155,0.001646,60018.0,60015.0,0.173625]
[1726421228580,0.001646,60018.0,60015.0,0.166625]
[1726421228803,0.001646,60018.0,60015.0,0.003]
[1726421229079,0.166619,60017.0,60015.0,0.004]
[1726421229303,0.166619,60017.0,60015.0,0.001]
[1726421229537,0.1705298,60016.0,60015.0,0.004]
[1726421229743,0.1705298,60016.0,60001.0,0.04321356]
[1726421229744,0.166637,60011.0,60006.0,0.166649]
[1726421229969,0.33327,60012.0,60003.0,0.166657]
[1726421230214,0.1976078,60016.0,59993.0,0.000823]
[1726421230215,0.3224,60007.0,59993.0,0.000823]
[1726421230434,0.3224,60007.0,59999.0,0.166668]
[1726421230435,0.166655,60004.0,59999.0,0.166668]
[1726421230655,0.166655,60005.0,60000.0,0.166665]
[1726421230893,0.655698,60007.0,59993.0,0.000823]
[1726421230894,0.166651,60006.0,59993.0,0.000823]
[1726421231116,0.655698,60007.0,59999.0,0.166667]
[1726421231365,0.655698,60007.0,59998.0,0.16667]
[1726421231366,0.166661,60002.0,59998.0,0.16667]
[1726421231607,0.166659,60003.0,59998.0,0.16667]
[1726421232298,0.337314,60004.0,59996.0,0.166676]
[1726421232579,0.166664,60001.0,59996.0,0.166676]
[1726421232790,0.166664,60001.0,59998.0,0.002]
[1726421233013,0.333314,60004.0,59998.0,0.002]
[1726421233278,0.333314,60004.0,59999.0,0.000823]
[1726421233279,0.166661,60002.0,59999.0,0.000823]
[1726421235001,0.333318,60003.0,59999.0,0.002823]
[1726421235261,0.166664,60001.0,59999.0,0.002823]
[1726421236031,0.166664,60001.0,59999.0,0.005823]
[1726421236459,0.166659,60003.0,59999.0,0.002823]
[1726421236694,0.166663,60002.0,59999.0,0.007823]
[1726421236973,0.166664,60001.0,59999.0,0.007823]
[1726421237205,0.166664,60001.0,59999.0,0.005823]
[1726421237435,0.166664,60001.0,59999.0,0.000823]
[1726421237634,0.166664,60001.0,59999.0,0.004823]
[1726421238147,0.333314,60004.0,59999.0,0.004823]
[1726421238148,0.166658,60003.0,59999.0,0.004823]
[1726421238400,0.166657,60004.0,59999.0,0.004823]
[1726421238611,0.333312,60004.0,59999.0,0.004823]
[1726421239256,0.166661,60002.0,59999.0,0.004823]
[1726421239511,0.166661,60002.0,59999.0,0.006823]
[1726421239971,0.166662,60002.0,59999.0,0.004823]
[1726421240194,0.166662,60002.0,59999.0,0.000823]
[1726421240638,0.166662,60002.0,59999.0,0.001823]
[1726421241077,0.166662,60002.0,59999.0,0.002823]
[1726421241998,0.166663,60001.0,59999.0,0.002823]
[1726421242637,0.166663,60001.0,59999.0,0.005823]
[1726421243099,0.166663,60001.0,59999.0,0.002823]
[1726421243340,0.166663,60001.0,59999.0,0.007823]
[1726421243990,0.166663,60001.0,59999.0,0.005823]
[1726421244200,0.166659,60003.0,59999.0,0.009823]
[1726421245599,0.166662,60002.0,59999.0,0.004823]
[1726421245833,0.166662,60002.0,59999.0,0.006823]
[1726421246473,0.166662,60002.0,59999.0,0.002823]
[1726421246706,0.166662,60002.0,59999.0,0.001823]
[1726421246916,0.166662,60002.0,59999.0,0.004823]
[1726421247125,0.166662,60002.0,59999.0,0.003823]
[1726421247591,0.166665,60001.0,59999.0,0.005823]
[1726421248484,0.16666,60003.0,59999.0,0.005823]
[1726421248700,0.16666,60003.0,59999.0,0.169491]
[1726421248916,0.166661,60002.0,59999.0,0.002823]
[1726421249127,0.166661,60002.0,59999.0,0.007823]
[1726421249641,0.166661,60002.0,59999.0,0.000823]
[1726421249854,0.333314,60004.0,59999.0,0.006823]
[1726421250064,0.166664,60001.0,59999.0,0.006823]
[1726421250281,0.166666,60000.0,59999.0,0.000823]
[1726421250502,0.166666,60000.0,59999.0,0.003823]
[1726421250716,0.166666,60000.0,59999.0,0.005823]
[1726421250964,0.166666,60000.0,59999.0,0.003823]
[1726421251175,0.166666,60000.0,59999.0,0.007823]
[1726421251596,0.166666,60000.0,59999.0,0.003823]
[1726421251828,0.166666,60000.0,59999.0,0.000823]
[1726421252052,0.166666,60000.0,59999.0,0.005823]
[1726421252482,0.166666,60000.0,59999.0,0.000823]
[1726421252896,0.166666,60000.0,59999.0,0.011823]
[1726421253802,0.333314,60004.0,59999.0,0.011823]
[1726421254016,0.166655,60004.0,59999.0,0.011823]
[1726421254234,0.166658,60003.0,59999.0,0.178492]
[1726421254453,0.166658,60003.0,59999.0,0.011823]
[1726421254671,0.166658,60003.0,59999.0,0.006823]
[1726421254907,0.527001,60006.0,59999.0,0.173491]
[1726421255124,0.166657,60004.0,59999.0,0.173491]
[1726421255339,0.166657,60004.0,59999.0,0.167491]
[1726421255557,0.166658,60003.0,59999.0,0.167491]
[1726421255773,0.166658,60003.0,59999.0,0.168491]
[1726421256431,0.166658,60003.0,59999.0,0.167491]
[1726421256854,0.166658,60003.0,59999.0,0.169491]
[1726421257092,0.166658,60003.0,59999.0,0.170491]
[1726421257571,0.333307,60005.0,59999.0,0.170491]
[1726421258204,0.166656,60004.0,59999.0,0.170491]
[1726421258414,0.166656,60004.0,59999.0,0.168491]
[1726421258674,0.166658,60003.0,59999.0,0.168491]
[1726421259111,0.166658,60003.0,59999.0,0.167491]
[1726421259748,0.166658,60003.0,59999.0,0.168491]
[1726421261350,0.166658,60003.0,59999.0,0.001823]
[1726421261569,0.166658,60004.0,59999.0,0.003823]
[1726421261796,0.333314,60004.0,59999.0,0.003823]
[1726421262015,0.166661,60002.0,59999.0,0.003823]
[1726421262254,0.333315,60004.0,59999.0,0.003823]
[1726421262490,0.333315,60004.0,59999.0,0.001823]
[1726421262739,0.166664,60001.0,59999.0,0.001823]
[1726421262984,0.166662,60002.0,59999.0,0.001823]
[1726421263212,0.166663,60001.0,59999.0,0.001823]
[1726421263942,0.166666,60000.0,59999.0,0.001823]
[1726421264162,0.166666,60000.0,59999.0,0.005823]
[1726421265057,0.166666,60000.0,59999.0,0.004823]
[1726421265489,0.166666,60000.0,59999.0,0.009823]
[1726421265987,0.166666,60000.0,59999.0,0.004823]
[1726421266145,0.166666,60000.0,59999.0,0.006823]
[1726421266572,0.166666,60000.0,59999.0,0.011823]
[1726421269177,0.166665,60001.0,59999.0,0.011823]
[1726421269615,0.166666,60000.0,59999.0,0.011823]
[1726421270471,0.166664,60001.0,59999.0,0.006823]
[1726421270682,0.166664,60001.0,59999.0,0.004823]
[1726421272041,0.166664,60001.0,59999.0,0.005823]
[1726421272523,0.360351,60006.0,60001.0,0.166662]
[1726421272759,0.527003,60006.0,59999.0,0.17749]
[1726421273005,0.166657,60004.0,59999.0,0.177491]
[1726421273229,0.166658,60003.0,59999.0,0.172491]
[1726421273450,0.166658,60003.0,59999.0,0.167491]
[1726421273674,0.166658,60003.0,59999.0,0.171491]
[1726421273892,0.166658,60003.0,59999.0,0.167491]
[1726421274118,0.166655,60005.0,60000.0,0.166665]
[1726421274335,0.1947,60006.0,59999.0,0.000823]
[1726421274550,0.1947,60006.0,60000.0,0.333332]
[1726421274762,0.166652,60005.0,59999.0,0.000823]
[1726421275218,0.166652,60005.0,59999.0,0.05081033]
[1726421275427,0.166652,60005.0,59999.0,0.21747733]
[1726421275656,0.166652,60005.0,60000.0,0.166666]
[1726421275902,0.166652,60005.0,60000.0,0.21665333]
[1726421276133,0.167652,60005.0,60000.0,0.21665333]
[1726421276356,0.167652,60005.0,60001.0,0.21665033]
[1726421277023,0.166652,60005.0,60001.0,0.21665033]
[1726421277209,0.167652,60005.0,60001.0,0.04998733]
[1726421277668,0.001,60005.0,60004.0,0.166655]
[1726421277887,0.001,60005.0,60001.0,0.21664933]
[1726421278114,0.167653,60005.0,60001.0,0.21664933]
[1726421278340,0.001,60005.0,60000.0,0.04998733]
[1726421278568,0.166662,60002.0,60000.0,0.04998733]
[1726421280193,0.166663,60001.0,60000.0,0.04998733]
[1726421280417,0.166663,60001.0,59999.0,0.000823]
[1726421280418,0.166666,60000.0,59999.0,0.000823]
[1726421280871,0.333313,60004.0,59999.0,0.000823]
[1726421281097,0.166665,60001.0,59999.0,0.000823]
[1726421281333,0.166666,60000.0,59999.0,0.000823]
[1726421281554,0.166659,60003.0,59999.0,0.000823]
[1726421281779,0.166661,60002.0,59999.0,0.000823]
[1726421282008,0.175664,60001.0,59999.0,0.05091019]
[1726421282237,0.170664,60001.0,59999.0,0.05091019]
[1726421282450,0.166664,60001.0,59999.0,0.05091019]
[1726421282666,0.004,60000.0,59999.0,0.05091019]
[1726421282917,0.166664,60001.0,59999.0,0.05091019]
[1726421283133,0.005,60001.0,60000.0,0.21675219]
[1726421283589,0.004,60001.0,60000.0,0.05008719]
[1726421283795,0.004,60001.0,60000.0,0.166666]
[1726421284212,0.004,60001.0,60000.0,0.21675319]
[1726421284428,0.004,60001.0,60000.0,0.166666]
[1726421284643,0.004,60001.0,60000.0,0.21675319]
[1726421284870,0.002,60001.0,60000.0,0.166666]
[1726421285107,0.166655,60004.0,60000.0,0.168666]
[1726421285572,0.166655,60004.0,60000.0,0.170666]
[1726421285777,0.166655,60004.0,60000.0,0.22075319]
[1726421285991,0.166655,60004.0,60000.0,0.22575319]
[1726421286206,0.333306,60005.0,60000.0,0.009]
[1726421286416,0.166659,60003.0,59999.0,0.05091019]
[1726421286665,0.166659,60003.0,60000.0,0.05008719]
[1726421286854,0.166659,60003.0,60000.0,0.001]
[1726421287967,0.49996,60005.0,59999.0,0.21757819]
[1726421288184,0.166654,60005.0,59999.0,0.21757819]
[1726421288403,0.4595696,60008.0,59999.0,0.003823]
[1726421288628,0.166656,60004.0,59999.0,0.16949]
[1726421288850,0.166656,60004.0,60000.0,0.167665]
[1726421289309,0.333291,60008.0,60001.0,0.166663]
[1726421289528,0.333291,60008.0,59999.0,0.334159]
[1726421289529,0.001,60005.0,60000.0,0.05008231]
[1726421289772,0.166659,60003.0,59999.0,0.05090531]
[1726421290002,0.166654,60005.0,60000.0,0.167665]
[1726421290452,0.166655,60004.0,60000.0,0.167665]
[1726421291112,0.333293,60008.0,60002.0,0.16666]
[1726421291334,0.07469989,60014.0,60000.0,0.05108231]
[1726421291578,0.001646,60015.0,60013.0,0.166628]
[1726421291819,0.001646,60015.0,60008.0,0.1262786]
[1726421291820,0.001646,60015.0,60014.0,0.166627]
[1726421292685,0.001646,60015.0,60011.0,0.333268]
[1726421292686,0.001646,60015.0,60013.0,0.16663]
[1726421292911,0.004646,60015.0,60013.0,0.16663]
[1726421293393,0.001646,60015.0,60013.0,0.16663]
[1726421293835,0.004646,60015.0,60013.0,0.16663]
[1726421294947,0.001646,60015.0,60013.0,0.16663]
[1726421295412,0.002646,60015.0,60013.0,0.16663]
[1726421295649,0.006646,60015.0,60013.0,0.16663]
[1726421295861,0.002646,60015.0,60013.0,0.16663]
[1726421296310,0.001646,60015.0,60014.0,0.833137]
[1726421296557,0.001646,60015.0,60014.0,1.166392]
[1726421297023,0.001646,60015.0,60014.0,1.50730663]
[1726421297472,0.001646,60015.0,60014.0,1.21635811]
[1726421297937,0.001646,60015.0,60014.0,1.166392]
[1726421298155,0.001646,60015.0,60014.0,1.35862]
[1726421298611,0.001646,60015.0,60014.0,1.40856428]
[1726421298834,0.001646,60015.0,60014.0,1.35962]
[1726421299053,0.001646,60015.0,60014.0,1.70344648]
[1726421299508,0.001646,60015.0,60014.0,1.40954289]
[1726421299767,0.001646,60015.0,60014.0,1.21931489]
[1726421299989,0.001646,60015.0,60014.0,1.169392]
[1726421303291,0.001646,60015.0,60014.0,0.836137]
[1726421310389,0.001646,60015.0,60014.0,1.169392]
[1726421311320,0.001646,60015.0,60014.0,1.192392]
[1726421311543,0.001646,60015.0,60014.0,1.294392]
[1726421311763,0.001646,60015.0,60014.0,1.292392]
[1726421312848,0.001646,60015.0,60014.0,1.290392]
[1726421313122,0.001646,60015.0,60014.0,1.289392]
[1726421313339,0.001646,60015.0,60014.0,1.298392]